[Event "DVM U14 2024"]
[Site "Heidelberg"]
[Date "2024.12.29"]
[Round "6"]
[White "Schwitkowski, Luka"]
[Black "Faerber, Anna"]
[Result "1-0"]
[ECO "C02"]
[WhiteElo "2070"]
[BlackElo "1698"]
[Annotator "NA RC"]
[PlyCount "91"]
[EventDate "2024.12.23"]
[EventType "team-tourn"]
[EventRounds "7"]
[EventCountry "GER"]
[SourceTitle "playchess.com"]
[Source "ChessBase"]
[SourceQuality "1"]
[TimeControl "40/5400+30:1800+30"]

1. e4 {[%emt 0:00:11]} e6 {[%emt 0:00:17]} 2. d4 {[%emt 0:00:02]} d5 {[%emt 0:00:06]} 3. e5 {[%emt 0:00:05]} c5 {[%emt 0:00:11]} 4. c3 {[%emt 0:00:04]} Qb6 {[%emt 0:00:04]} 5. Nf3 {[%emt 0:00:07]} Nc6 {[%emt 0:00:08]} 6. a3 {[%emt 0:00:06]} Nh6 {[%emt 0:00:52]} 7. Bd3 {[%emt 0:00:05]} Nf5 {[%emt 0:00:43]} 8. O-O {[%emt 0:00:16]} cxd4 {[%emt 0:01:23]} 9. Bxf5 {[%emt 0:00:25]} exf5 {[%emt 0:00:16]} 10. cxd4 {[%emt 0:00:03]} Be6 {[%emt 0:00:52]} 11. Nc3 {[%emt 0:00:04]} Be7 {[%emt 0:03:29]} 12. Qd3 {[%emt 0:00:24]} h6 {[%emt 0:04:56]} 13. Na4 {[%emt 0:00:13]} Qc7 {[%emt 0:06:37]} 14. Be3 {[%emt 0:00:20]} O-O {[%emt 0:03:25]} 15. b4 {[%emt 0:00:18]} b6 {[%emt 0:08:46]} 16. Rfc1 {[%emt 0:01:15]} Qd7 {[%emt 0:02:08]} 17. Nc3 {[%emt 0:00:11]} Rfc8 {[%emt 0:04:43]} 18. h4 {[%emt 0:17:49]} Nd8 {[%emt 0:07:19]} 19. Qa6 {[%emt 0:12:31]} Nc6 {[%emt 0:04:38]} 20. Qd3 {[%emt 0:01:29]} Nd8 {[%emt 0:01:10]} 21. Qa6 {[%emt 0:00:08]} Nc6 {[%emt 0:00:09]} 22. g3 {[%emt 0:00:01]} Nb8 {[%emt 0:09:23]} 23. Qd3 {[%emt 0:08:34]} Nc6 {[%emt 0:02:04]} 24. Qa6 {[%emt 0:00:20]} Nb8 {[%emt 0:00:10]} 25. Qd3 {[%emt 0:00:02]} Nc6 {[%emt 0:00:06]} 26. Kg2 {[%emt 0:00:28]} Nd8 {[%emt 0:03:35]} 27. Qa6 {[%emt 0:04:17]} Nc6 {[%emt 0:03:58]} 28. Qd3 {[%emt 0:06:59]} Rd8 {[%emt 0:04:20]} 29. Ne2 {[%emt 0:03:39]} Rac8 {[%emt 0:01:46]} 30. Nf4 {[%emt 0:03:07]} Rc7 {[%emt 0:07:53]} 31. Qd2 {[%emt 0:02:15]} Kh7 {[%emt 0:00:53]} 32. Nh5 {[%emt 0:07:45]} Rg8 {[%emt 0:03:36]} 33. Rh1 {[%emt 0:01:53]} Qd8 {[%emt 0:04:09]} 34. Rac1 {[%emt 0:06:21]} Rc8 {[%emt 0:02:01]} 35. Ng5+ {[%emt 0:13:21]} Kh8 {[%emt 0:05:04]} 36. Nxe6 {[%emt 0:06:25]} fxe6 {[%emt 0:00:09]} 37. Bxh6 {[%emt 0:00:14]} Kh7 {[%emt 0:02:47]} 38. Bg5 {[%emt 0:01:11]} Qe8 {[%emt 0:01:11]} 39. Nf4 {[%emt 0:00:19]} Qd7 {[%emt 0:00:43]} 40. Qe2 {[%emt 0:01:54]} Rh8 {[%emt 0:00:27]} 41. Bxe7 {[%emt 0:30:13]} Nxe7 {[%emt 0:30:33]} 42. Rxc8 {[%emt 0:01:33]} Qxc8 {[%emt 0:01:10]} 43. Qh5+ {[%emt 0:00:13]} Kg8 {[%emt 0:00:11]} 44. Qg5 {[%emt 0:00:05]} Qb7 {[%emt 0:01:21]} 45. Nxe6 {[%emt 0:00:10]} Nc6 {[%emt 0:00:38]} 46. Rc1 {[%emt 0:00:08]} 1-0

[Event "DVM U14 2024"]
[Site "Heidelberg"]
[Date "2024.12.29"]
[Round "6"]
[White "Klein, Levent"]
[Black "Marcziter, Alex"]
[Result "1/2-1/2"]
[ECO "E94"]
[WhiteElo "1985"]
[BlackElo "2017"]
[Annotator "NA RC"]
[PlyCount "55"]
[EventDate "2024.12.23"]
[EventType "team-tourn"]
[EventRounds "7"]
[EventCountry "GER"]
[SourceTitle "playchess.com"]
[Source "ChessBase"]
[SourceQuality "1"]
[TimeControl "40/5400+30:1800+30"]

1. d4 {[%emt 0:00:01]} Nf6 {[%emt 0:00:27]} 2. c4 {[%emt 0:00:04]} g6 {[%emt 0:00:55]} 3. Nc3 {[%emt 0:00:04]} Bg7 {[%emt 0:00:58]} 4. e4 {[%emt 0:00:04]} d6 {[%emt 0:00:30]} 5. Nf3 {[%emt 0:00:04]} O-O {[%emt 0:00:47]} 6. Be2 {[%emt 0:00:06]} Nbd7 {[%emt 0:04:07]} 7. O-O {[%emt 0:04:03]} e5 {[%emt 0:01:06]} 8. d5 {[%emt 0:04:48]} Nc5 {[%emt 0:03:53]} 9. Qc2 {[%emt 0:00:47]} a5 {[%emt 0:00:44]} 10. Be3 {[%emt 0:16:10]} Ne8 {[%emt 0:05:14]} 11. Nd2 {[%emt 0:07:53]} f5 {[%emt 0:02:42]} 12. f3 {[%emt 0:00:43]} f4 {[%emt 0:01:44]} 13. Bf2 {[%emt 0:01:00]} g5 {[%emt 0:04:34]} 14. a3 {[%emt 0:00:44]} h5 {[%emt 0:08:21]} 15. b4 {[%emt 0:00:48]} Na6 {[%emt 0:00:53]} 16. Rab1 {[%emt 0:04:25]} g4 {[%emt 0:07:18]} 17. b5 {[%emt 0:09:36]} Nc5 {[%emt 0:01:42]} 18. Bxc5 {[%emt 0:03:06]} dxc5 {[%emt 0:00:29]} 19. b6 {[%emt 0:00:07]} g3 {[%emt 0:01:44]} 20. h3 {[%emt 0:11:20]} Nd6 {[%emt 0:08:29]} 21. Rfc1 {[%emt 0:00:58]} Qh4 {[%emt 0:00:48]} 22. Bf1 {[%emt 0:01:10]} Rf6 {[%emt 0:01:58]} 23. Nb5 {[%emt 0:03:40]} Nf7 {[%emt 0:06:53]} 24. Nxc7 {[%emt 0:06:42]} Rg6 {[%emt 0:01:05]} 25. Ne6 {[%emt 0:00:38]} Bxe6 {[%emt 0:02:05]} 26. dxe6 {[%emt 0:00:07]} Nd8 {[%emt 0:01:08]} 27. Rb5 {[%emt 0:04:42]} Nxe6 {[%emt 0:00:21]} 28. Nb3 {[%emt 0:03:30]} 1/2-1/2

[Event "DVM U14 2024"]
[Site "Heidelberg"]
[Date "2024.12.29"]
[Round "6"]
[White "Hempel, Lorenz"]
[Black "Ollhoff, Hannes"]
[Result "1-0"]
[ECO "C07"]
[WhiteElo "1960"]
[BlackElo "1801"]
[Annotator "RC"]
[PlyCount "101"]
[EventDate "2024.12.23"]
[EventType "team-tourn"]
[EventRounds "7"]
[EventCountry "GER"]
[SourceTitle "playchess.com"]
[Source "ChessBase"]
[SourceQuality "1"]
[TimeControl "40/5400+30:1800+30"]

1. e4 {[%emt 0:00:00]} e6 {[%emt 0:00:09]} 2. d4 {[%emt 0:00:05]} d5 {[%emt 0:00:04]} 3. Nd2 {[%emt 0:00:05]} c5 {[%emt 0:00:20]} 4. Ngf3 {[%emt 0:00:27]} cxd4 {[%emt 0:01:19]} 5. exd5 {[%emt 0:00:24]} Qxd5 {[%emt 0:00:47]} 6. Bc4 {[%emt 0:00:47]} Qd8 {[%emt 0:00:26]} 7. O-O {[%emt 0:00:33]} Nf6 {[%emt 0:01:31]} 8. Nb3 {[%emt 0:00:09]} Be7 {[%emt 0:00:57]} 9. Nbxd4 {[%emt 0:01:55]} O-O {[%emt 0:01:12]} 10. Qe2 {[%emt 0:02:34]} a6 {[%emt 0:06:38]} 11. Bf4 {[%emt 0:08:09]} b5 {[%emt 0:11:58]} 12. Bb3 {[%emt 0:01:38]} Bb7 {[%emt 0:01:23]} 13. a4 {[%emt 0:02:11]} b4 {[%emt 0:03:52]} 14. Rad1 {[%emt 0:03:45]} Qb6 {[%emt 0:04:45]} 15. Ne5 {[%emt 0:12:52]} Nc6 {[%emt 0:03:47]} 16. Ndxc6 {[%emt 0:05:37]} Bxc6 {[%emt 0:00:40]} 17. Nxc6 {[%emt 0:02:32]} Qxc6 {[%emt 0:00:10]} 18. Rd2 {[%emt 0:02:02]} Rfd8 {[%emt 0:06:12]} 19. Rfd1 {[%emt 0:00:37]} h6 {[%emt 0:01:53]} 20. Qc4 {[%emt 0:07:25]} Qxc4 {[%emt 0:08:41]} 21. Bxc4 {[%emt 0:00:19]} a5 {[%emt 0:00:59]} 22. Rxd8+ {[%emt 0:07:03]} Rxd8 {[%emt 0:00:23]} 23. Rxd8+ {[%emt 0:00:14]} Bxd8 {[%emt 0:00:09]} 24. Be3 {[%emt 0:01:37]} Nd5 {[%emt 0:04:38]} 25. Bxd5 {[%emt 0:03:17]} exd5 {[%emt 0:00:48]} 26. Kf1 {[%emt 0:08:40]} Kf8 {[%emt 0:02:57]} 27. Ke2 {[%emt 0:00:27]} Ke7 {[%emt 0:00:31]} 28. Kd3 {[%emt 0:00:09]} Ke6 {[%emt 0:01:26]} 29. Bd4 {[%emt 0:01:58]} g6 {[%emt 0:02:18]} 30. c3 {[%emt 0:00:21]} bxc3 {[%emt 0:03:56]} 31. Bxc3 {[%emt 0:00:14]} Bb6 {[%emt 0:01:04]} 32. f3 {[%emt 0:02:43]} Kd6 {[%emt 0:04:48]} 33. b4 {[%emt 0:00:44]} axb4 {[%emt 0:00:41]} 34. Bxb4+ {[%emt 0:00:03]} Kc6 {[%emt 0:00:55]} 35. g4 {[%emt 0:02:07]} f5 {[%emt 0:03:35]} 36. gxf5 {[%emt 0:01:01]} gxf5 {[%emt 0:00:06]} 37. h3 {[%emt 0:00:21]} h5 {[%emt 0:01:16]} 38. Bc3 {[%emt 0:08:32]} Bd8 {[%emt 0:08:59]} 39. Bb4 {[%emt 0:04:11]} Bb6 {[%emt 0:02:16]} 40. a5 {[%emt 0:04:37]} Ba7 {[%emt 0:07:41]} 41. Bc3 {[%emt 0:30:31]} Kb5 {[%emt 0:34:06]} 42. Bd4 {[%emt 0:00:23]} Bb8 {[%emt 0:00:27]} 43. Bb6 {[%emt 0:00:09]} Be5 {[%emt 0:00:00]} 44. Bd4 {[%emt 0:00:00]} Bb8 {[%emt 0:00:00]} 45. Bc3 {[%emt 0:00:00]} Ba7 {[%emt 0:00:00]} 46. Bd2 {[%emt 0:00:00]} Bb8 {[%emt 0:00:00]} 47. Kd4 {[%emt 0:00:00]} Kc6 {[%emt 0:00:00]} 48. a6 {[%emt 0:00:00]} Bc7 {[%emt 0:00:00]} 49. Bc3 {[%emt 0:00:00]} f4 {[%emt 0:00:00]} 50. Kd3 {[%emt 0:00:00]} Kb6 {[%emt 0:00:00]} 51. Ba5+ {[%emt 0:00:00]} 1-0

[Event "DVM U14 2024"]
[Site "Heidelberg"]
[Date "2024.12.29"]
[Round "6"]
[White "Bauer, Laura Sophie"]
[Black "Retzlaff, Kian"]
[Result "0-1"]
[ECO "B90"]
[WhiteElo "1926"]
[BlackElo "1826"]
[Annotator "NA RC"]
[PlyCount "74"]
[EventDate "2024.12.23"]
[EventType "team-tourn"]
[EventRounds "7"]
[EventCountry "GER"]
[SourceTitle "playchess.com"]
[Source "ChessBase"]
[SourceQuality "1"]
[TimeControl "40/5400+30:1800+30"]

1. e4 {[%emt 0:00:02]} c5 {[%emt 0:00:05]} 2. Nf3 {[%emt 0:00:04]} d6 {[%emt 0:00:05]} 3. d4 {[%emt 0:00:04]} cxd4 {[%emt 0:00:02]} 4. Nxd4 {[%emt 0:00:06]} Nf6 {[%emt 0:00:06]} 5. Nc3 {[%emt 0:00:06]} a6 {[%emt 0:00:03]} 6. Bd3 {[%emt 0:00:09]} e5 {[%emt 0:00:06]} 7. Nde2 {[%emt 0:00:04]} Be7 {[%emt 0:00:03]} 8. O-O {[%emt 0:00:13]} O-O {[%emt 0:00:04]} 9. Ng3 {[%emt 0:00:09]} Be6 {[%emt 0:09:27]} 10. Nd5 {[%emt 0:00:26]} Bxd5 {[%emt 0:02:46]} 11. exd5 {[%emt 0:00:08]} g6 {[%emt 0:08:40]} 12. c4 {[%emt 0:00:36]} Re8 {[%emt 0:05:55]} 13. Re1 {[%emt 0:04:25]} Nbd7 {[%emt 0:03:16]} 14. Bd2 {[%emt 0:11:03]} Bf8 {[%emt 0:04:43]} 15. Bc3 {[%emt 0:02:34]} Rc8 {[%emt 0:03:05]} 16. Rc1 {[%emt 0:03:36]} Bg7 {[%emt 0:06:03]} 17. b3 {[%emt 0:02:30]} h5 {[%emt 0:05:02]} 18. h3 {[%emt 0:08:34]} h4 {[%emt 0:07:36]} 19. Nf1 {[%emt 0:02:04]} Nh5 {[%emt 0:03:59]} 20. Bd2 {[%emt 0:05:48]} Qf6 {[%emt 0:22:15]} 21. Nh2 {[%emt 0:02:31]} Nf4 {[%emt 0:00:51]} 22. Bxf4 {[%emt 0:03:22]} Qxf4 {[%emt 0:00:56]} 23. Re4 {[%emt 0:03:36]} Qf6 {[%emt 0:02:00]} 24. b4 {[%emt 0:04:56]} Qd8 {[%emt 0:02:40]} 25. Re1 {[%emt 0:02:48]} Nf6 {[%emt 0:00:50]} 26. Be2 {[%emt 0:02:25]} e4 {[%emt 0:03:07]} 27. Qb3 {[%emt 0:05:51]} Bh6 {[%emt 0:01:34]} 28. Rc2 {[%emt 0:03:15]} e3 {[%emt 0:00:43]} 29. f3 {[%emt 0:00:32]} Bf4 {[%emt 0:01:13]} 30. Nf1 {[%emt 0:01:20]} Nh5 {[%emt 0:01:46]} 31. Bd1 {[%emt 0:03:07]} Qg5 {[%emt 0:00:08]} 32. Rc3 {[%emt 0:01:26]} Re5 {[%emt 0:01:12]} 33. Be2 {[%emt 0:01:48]} Rce8 {[%emt 0:02:25]} 34. b5 {[%emt 0:02:17]} Ng3 {[%emt 0:00:47]} 35. Nh2 {[%emt 0:00:44]} Ne4 {[%emt 0:00:47]} 36. Rcc1 {[%emt 0:00:38]} Qg3 {[%emt 0:02:25]} 37. Ng4 {[%emt 0:00:29]} Nf2 {[%emt 0:00:30]} 0-1

[Event "DVM U14 2024"]
[Site "Heidelberg"]
[Date "2024.12.29"]
[Round "6"]
[White "Neumeier, Valentina"]
[Black "Bodriyenko, Daniel"]
[Result "1-0"]
[ECO "C54"]
[WhiteElo "1877"]
[BlackElo "1694"]
[Annotator "NA RC"]
[PlyCount "87"]
[EventDate "2024.12.23"]
[EventType "team-tourn"]
[EventRounds "7"]
[EventCountry "GER"]
[SourceTitle "playchess.com"]
[Source "ChessBase"]
[SourceQuality "1"]
[TimeControl "40/5400+30:1800+30"]

1. e4 {[%emt 0:00:01]} e5 {[%emt 0:00:05]} 2. Nf3 {[%emt 0:00:05]} Nc6 {[%emt 0:00:04]} 3. Bc4 {[%emt 0:00:06]} Nf6 {[%emt 0:00:06]} 4. d3 {[%emt 0:00:06]} Bc5 {[%emt 0:00:14]} 5. c3 {[%emt 0:00:06]} d6 {[%emt 0:00:12]} 6. Nbd2 {[%emt 0:00:17]} O-O {[%emt 0:00:21]} 7. O-O {[%emt 0:00:07]} Re8 {[%emt 0:00:14]} 8. Re1 {[%emt 0:01:00]} Bd7 {[%emt 0:01:11]} 9. b4 {[%emt 0:00:35]} Bb6 {[%emt 0:00:14]} 10. a4 {[%emt 0:01:29]} a6 {[%emt 0:00:17]} 11. Nf1 {[%emt 0:03:36]} h6 {[%emt 0:04:00]} 12. Ng3 {[%emt 0:01:49]} Ne7 {[%emt 0:04:53]} 13. Qb3 {[%emt 0:11:43]} Rf8 {[%emt 0:04:02]} 14. d4 {[%emt 0:04:18]} Ng6 {[%emt 0:02:59]} 15. h3 {[%emt 0:15:01]} Qe7 {[%emt 0:06:31]} 16. Nf5 {[%emt 0:05:05]} Qe8 {[%emt 0:02:51]} 17. Qc2 {[%emt 0:12:57]} Rd8 {[%emt 0:05:42]} 18. N3h4 {[%emt 0:04:48]} Nxh4 {[%emt 0:03:03]} 19. Nxh4 {[%emt 0:00:16]} Kh7 {[%emt 0:00:34]} 20. Be3 {[%emt 0:03:18]} Be6 {[%emt 0:10:00]} 21. Bd3 {[%emt 0:02:58]} c6 {[%emt 0:05:26]} 22. a5 {[%emt 0:01:24]} Bc7 {[%emt 0:01:34]} 23. d5 {[%emt 0:02:35]} Bd7 {[%emt 0:01:53]} 24. c4 {[%emt 0:01:58]} Qe7 {[%emt 0:03:30]} 25. Nf3 {[%emt 0:01:41]} Rc8 {[%emt 0:02:11]} 26. Qe2 {[%emt 0:02:22]} Kg8 {[%emt 0:01:07]} 27. Nd2 {[%emt 0:02:34]} Rfe8 {[%emt 0:04:22]} 28. f4 {[%emt 0:04:33]} Nh7 {[%emt 0:05:32]} 29. Rf1 {[%emt 0:06:49]} f6 {[%emt 0:06:54]} 30. f5 {[%emt 0:01:09]} Qf7 {[%emt 0:00:29]} 31. Qg4 {[%emt 0:01:45]} cxd5 {[%emt 0:01:55]} 32. exd5 {[%emt 0:02:31]} Kh8 {[%emt 0:01:53]} 33. h4 {[%emt 0:01:14]} Re7 {[%emt 0:02:13]} 34. Ne4 {[%emt 0:00:51]} Be8 {[%emt 0:01:48]} 35. Be2 {[%emt 0:01:03]} Rd8 {[%emt 0:01:29]} 36. Rfd1 {[%emt 0:01:12]} Nf8 {[%emt 0:05:49]} 37. c5 {[%emt 0:01:02]} Bb5 {[%emt 0:08:31]} 38. Bxb5 {[%emt 0:01:05]} axb5 {[%emt 0:00:05]} 39. cxd6 {[%emt 0:00:52]} Bxd6 {[%emt 0:00:34]} 40. Nxd6 {[%emt 0:00:28]} Rxd6 {[%emt 0:01:03]} 41. Bc5 {[%emt 0:30:09]} Red7 {[%emt 0:30:11]} 42. Bxd6 {[%emt 0:00:31]} Rxd6 {[%emt 0:00:08]} 43. Qe4 {[%emt 0:00:55]} Nd7 {[%emt 0:01:51]} 44. Rac1 {[%emt 0:02:46]} 1-0

[Event "DVM U14 2024"]
[Site "Heidelberg"]
[Date "2024.12.29"]
[Round "6"]
[White "Haertel, Leon"]
[Black "Kalinski, Jan"]
[Result "1-0"]
[ECO "A57"]
[WhiteElo "1839"]
[BlackElo "1700"]
[Annotator "NA RC"]
[PlyCount "83"]
[EventDate "2024.12.23"]
[EventType "team-tourn"]
[EventRounds "7"]
[EventCountry "GER"]
[SourceTitle "playchess.com"]
[Source "ChessBase"]
[SourceQuality "1"]
[TimeControl "40/5400+30:1800+30"]

1. d4 {[%emt 0:00:04]} Nf6 {[%emt 0:00:06]} 2. c4 {[%emt 0:00:11]} c5 {[%emt 0:00:04]} 3. d5 {[%emt 0:00:12]} b5 {[%emt 0:00:04]} 4. Qc2 {[%emt 0:00:29]} b4 {[%emt 0:07:15]} 5. e4 {[%emt 0:01:29]} d6 {[%emt 0:00:12]} 6. f4 {[%emt 0:01:13]} Nbd7 {[%emt 0:00:23]} 7. Nf3 {[%emt 0:00:19]} Qc7 {[%emt 0:00:17]} 8. Bd3 {[%emt 0:00:50]} g6 {[%emt 0:00:24]} 9. O-O {[%emt 0:01:46]} Bg7 {[%emt 0:00:08]} 10. h3 {[%emt 0:02:23]} h5 {[%emt 0:04:40]} 11. e5 {[%emt 0:28:01]} dxe5 {[%emt 0:02:40]} 12. Bxg6 {[%emt 0:01:17]} e4 {[%emt 0:05:30]} 13. Bxe4 {[%emt 0:16:51]} Nxe4 {[%emt 0:03:33]} 14. Qxe4 {[%emt 0:00:41]} Nf6 {[%emt 0:01:28]} 15. Qd3 {[%emt 0:05:09]} O-O {[%emt 0:03:41]} 16. Ne5 {[%emt 0:06:17]} Rd8 {[%emt 0:02:40]} 17. Qe3 {[%emt 0:02:13]} Bf5 {[%emt 0:04:00]} 18. Nd2 {[%emt 0:04:52]} e6 {[%emt 0:02:49]} 19. dxe6 {[%emt 0:00:28]} fxe6 {[%emt 0:00:41]} 20. b3 {[%emt 0:02:18]} Nd7 {[%emt 0:05:01]} 21. Bb2 {[%emt 0:03:05]} Nxe5 {[%emt 0:00:46]} 22. Bxe5 {[%emt 0:02:04]} Bxe5 {[%emt 0:00:29]} 23. fxe5 {[%emt 0:00:09]} Qg7 {[%emt 0:02:38]} 24. Rxf5 {[%emt 0:07:25]} exf5 {[%emt 0:00:30]} 25. Rf1 {[%emt 0:00:33]} Rf8 {[%emt 0:04:40]} 26. Qxc5 {[%emt 0:00:52]} a5 {[%emt 0:08:12]} 27. Nf3 {[%emt 0:03:11]} Qa7 {[%emt 0:01:21]} 28. Qxa7 {[%emt 0:07:31]} Rxa7 {[%emt 0:00:08]} 29. Rd1 {[%emt 0:00:16]} a4 {[%emt 0:01:29]} 30. Rd3 {[%emt 0:00:13]} axb3 {[%emt 0:00:33]} 31. axb3 {[%emt 0:00:06]} Rc8 {[%emt 0:00:37]} 32. Kf2 {[%emt 0:00:35]} Ra3 {[%emt 0:00:08]} 33. Ke3 {[%emt 0:00:41]} Ra2 {[%emt 0:00:05]} 34. Nd2 {[%emt 0:00:23]} Ra5 {[%emt 0:13:35]} 35. Kf4 {[%emt 0:00:24]} Re8 {[%emt 0:00:06]} 36. Nf3 {[%emt 0:00:11]} Ra2 {[%emt 0:00:36]} 37. g3 {[%emt 0:00:36]} Re2 {[%emt 0:00:21]} 38. Kxf5 {[%emt 0:01:12]} Rf8+ {[%emt 0:00:20]} 39. Kg6 {[%emt 0:00:32]} Rg2 {[%emt 0:02:03]} 40. Ng5 {[%emt 0:00:26]} Re2 {[%emt 0:00:13]} 41. e6 {[%emt 0:32:23]} Ref2 {[%emt 0:30:20]} 42. e7 {[%emt 0:00:00]} 1-0

[Event "DVM U14 2024"]
[Site "Heidelberg"]
[Date "2024.12.29"]
[Round "6"]
[White "Geschke, David"]
[Black "Steinbrenner, Peter"]
[Result "1-0"]
[ECO "E38"]
[WhiteElo "1831"]
[BlackElo "1946"]
[Annotator "RC"]
[PlyCount "123"]
[EventDate "2024.12.23"]
[EventType "team-tourn"]
[EventRounds "7"]
[EventCountry "GER"]
[SourceTitle "playchess.com"]
[Source "ChessBase"]
[SourceQuality "1"]
[TimeControl "40/5400+30:1800+30"]

1. d4 {[%emt 0:00:02]} Nf6 {[%emt 0:00:09]} 2. c4 {[%emt 0:00:07]} e6 {[%emt 0:00:06]} 3. Nc3 {[%emt 0:00:05]} Bb4 {[%emt 0:00:05]} 4. Qc2 {[%emt 0:02:25]} c5 {[%emt 0:00:27]} 5. e3 {[%emt 0:03:19]} d5 {[%emt 0:01:10]} 6. Nf3 {[%emt 0:02:38]} Nc6 {[%emt 0:01:30]} 7. cxd5 {[%emt 0:01:41]} exd5 {[%emt 0:01:30]} 8. Bd3 {[%emt 0:02:04]} Bg4 {[%emt 0:04:20]} 9. dxc5 {[%emt 0:04:25]} O-O {[%emt 0:01:43]} 10. Nd4 {[%emt 0:02:21]} Ne5 {[%emt 0:06:42]} 11. O-O {[%emt 0:04:46]} Bxc5 {[%emt 0:03:54]} 12. h3 {[%emt 0:08:53]} Bh5 {[%emt 0:00:29]} 13. Re1 {[%emt 0:00:42]} Rc8 {[%emt 0:02:42]} 14. Bf5 {[%emt 0:03:08]} Bg6 {[%emt 0:06:49]} 15. Bxg6 {[%emt 0:05:07]} hxg6 {[%emt 0:00:39]} 16. Qe2 {[%emt 0:11:51]} Re8 {[%emt 0:05:41]} 17. Rd1 {[%emt 0:11:38]} Bb4 {[%emt 0:09:33]} 18. Bd2 {[%emt 0:02:56]} Nc4 {[%emt 0:03:44]} 19. Be1 {[%emt 0:00:50]} a6 {[%emt 0:07:32]} 20. Rac1 {[%emt 0:02:52]} Ne5 {[%emt 0:10:25]} 21. a3 {[%emt 0:05:16]} Bc5 {[%emt 0:01:13]} 22. b4 {[%emt 0:02:50]} Ba7 {[%emt 0:01:05]} 23. Qb2 {[%emt 0:01:11]} Nc4 {[%emt 0:03:12]} 24. Qb3 {[%emt 0:00:45]} b5 {[%emt 0:00:36]} 25. Nce2 {[%emt 0:05:35]} Qd6 {[%emt 0:02:13]} 26. Bc3 {[%emt 0:01:43]} Bb8 {[%emt 0:05:53]} 27. Nf3 {[%emt 0:01:40]} Ne4 {[%emt 0:05:29]} 28. Ned4 {[%emt 0:02:16]} Rcd8 {[%emt 0:06:15]} 29. Ra1 {[%emt 0:03:19]} Nxf2 {[%emt 0:02:55]} 30. Kxf2 {[%emt 0:00:21]} Nxe3 {[%emt 0:00:00]} 31. Rd2 {[%emt 0:03:34]} Qg3+ {[%emt 0:02:23]} 32. Kg1 {[%emt 0:00:10]} Nc4 {[%emt 0:00:57]} 33. Re2 {[%emt 0:02:29]} Bf4 {[%emt 0:02:43]} 34. Be1 {[%emt 0:01:41]} Be3+ {[%emt 0:00:46]} 35. Kh1 {[%emt 0:01:54]} Qf4 {[%emt 0:00:42]} 36. Nc2 {[%emt 0:00:59]} d4 {[%emt 0:00:52]} 37. Nxe3 {[%emt 0:00:39]} Rxe3 {[%emt 0:01:11]} 38. Rxe3 {[%emt 0:00:10]} dxe3 {[%emt 0:00:27]} 39. Ra2 {[%emt 0:00:48]} Nd2 {[%emt 0:01:05]} 40. Bxd2 {[%emt 0:00:25]} exd2 {[%emt 0:00:16]} 41. Qd1 {[%emt 0:10:44]} Rd3 {[%emt 0:04:56]} 42. Rxd2 {[%emt 0:07:53]} Rxa3 {[%emt 0:01:18]} 43. Rd8+ {[%emt 0:02:26]} Kh7 {[%emt 0:00:22]} 44. Rd4 {[%emt 0:06:42]} Qf6 {[%emt 0:00:24]} 45. Qd2 {[%emt 0:02:09]} Rxf3 {[%emt 0:01:52]} 46. gxf3 {[%emt 0:00:34]} Qxf3+ {[%emt 0:00:07]} 47. Kh2 {[%emt 0:01:23]} Qa8 {[%emt 0:01:12]} 48. Qf4 {[%emt 0:00:44]} f6 {[%emt 0:00:18]} 49. Qe4 {[%emt 0:00:40]} Qb8+ {[%emt 0:00:24]} 50. Kg2 {[%emt 0:00:04]} Qc7 {[%emt 0:00:42]} 51. Qd3 {[%emt 0:01:00]} Qc6+ {[%emt 0:00:29]} 52. Kf2 {[%emt 0:00:19]} Qb6 {[%emt 0:00:31]} 53. Ke2 {[%emt 0:00:53]} Qe6+ {[%emt 0:01:20]} 54. Kd1 {[%emt 0:00:16]} Qe5 {[%emt 0:01:22]} 55. Kc2 {[%emt 0:00:48]} Qe7 {[%emt 0:02:41]} 56. h4 {[%emt 0:00:27]} Qf7 {[%emt 0:00:51]} 57. Rd5 {[%emt 0:00:54]} f5 {[%emt 0:01:42]} 58. h5 {[%emt 0:00:53]} Qc7+ {[%emt 0:00:46]} 59. Kb3 {[%emt 0:00:18]} gxh5 {[%emt 0:00:59]} 60. Qxf5+ {[%emt 0:00:15]} Kg8 {[%emt 0:00:21]} 61. Qe6+ {[%emt 0:00:19]} Qf7 {[%emt 0:00:16]} 62. Rd8+ {[%emt 0:00:27]} 1-0

[Event "DVM U14 2024"]
[Site "Heidelberg"]
[Date "2024.12.29"]
[Round "6"]
[White "Arne, Jonas"]
[Black "Fischermann, Simon"]
[Result "1/2-1/2"]
[ECO "A04"]
[WhiteElo "1823"]
[BlackElo "1899"]
[Annotator "NA RC"]
[PlyCount "42"]
[EventDate "2024.12.23"]
[EventType "team-tourn"]
[EventRounds "7"]
[EventCountry "GER"]
[SourceTitle "playchess.com"]
[Source "ChessBase"]
[SourceQuality "1"]
[TimeControl "40/5400+30:1800+30"]

1. d4 {[%emt 0:00:01]} Nf6 {[%emt 0:00:08]} 2. Nf3 {[%emt 0:00:05]} g6 {[%emt 0:00:05]} 3. g3 {[%emt 0:01:11]} Bg7 {[%emt 0:00:08]} 4. Bg2 {[%emt 0:00:03]} O-O {[%emt 0:00:13]} 5. O-O {[%emt 0:00:09]} c5 {[%emt 0:00:20]} 6. c4 {[%emt 0:00:36]} cxd4 {[%emt 0:01:45]} 7. Nxd4 {[%emt 0:00:26]} Nc6 {[%emt 0:00:16]} 8. Nxc6 {[%emt 0:00:48]} bxc6 {[%emt 0:00:09]} 9. Nc3 {[%emt 0:00:08]} Ba6 {[%emt 0:00:28]} 10. Qa4 {[%emt 0:02:04]} Qc8 {[%emt 0:02:48]} 11. Bf4 {[%emt 0:02:30]} Bb7 {[%emt 0:09:02]} 12. Rac1 {[%emt 0:02:42]} c5 {[%emt 0:05:51]} 13. e4 {[%emt 0:02:51]} Nh5 {[%emt 0:03:50]} 14. Be3 {[%emt 0:01:46]} d6 {[%emt 0:00:47]} 15. Qc2 {[%emt 0:04:44]} Rb8 {[%emt 0:01:07]} 16. b3 {[%emt 0:00:40]} Nf6 {[%emt 0:07:36]} 17. Nd5 {[%emt 0:03:39]} Qe6 {[%emt 0:05:53]} 18. Bg5 {[%emt 0:07:05]} Bxd5 {[%emt 0:08:00]} 19. exd5 {[%emt 0:00:51]} Qd7 {[%emt 0:01:58]} 20. Rfe1 {[%emt 0:02:47]} Rfe8 {[%emt 0:02:02]} 21. h3 {[%emt 0:03:46]} a5 {[%emt 0:00:34]} 1/2-1/2